bitfinex/quotes_ETHUSD_20250807
["timestamp","ask_amount","ask_price","bid_price","bid_amount"]
[1754576351598,10.32091353,3840.6,3840.5,0.001]
[1754576351809,24.82091353,3840.6,3840.5,0.001]
[1754576352108,25.73261353,3840.6,3840.5,0.001]
[1754576352410,20.60651353,3840.6,3840.5,0.001]
[1754576352563,24.56053755,3840.6,3840.5,0.001]
[1754576354397,24.56053755,3840.6,3840.5,0.4531]
[1754576354561,20.47653755,3840.6,3840.5,0.4531]
[1754576354982,24.56053755,3840.6,3840.5,0.9093]
[1754576355191,14.87277773,3840.6,3840.5,0.9093]
[1754576355625,21.31815982,3840.6,3840.5,0.9093]
[1754576355788,14.87423909,3840.6,3840.5,0.9093]
[1754576356119,0.24383909,3840.6,3840.5,3.51312762]
[1754576356274,4.084,3840.6,3840.5,3.86454038]
[1754576356816,4.084,3840.6,3840.5,3.99494038]
[1754576357124,0.002,3841.4,3840.6,0.55]
[1754576357282,0.002,3841.4,3841.3,2.60328534]
[1754576357477,4.086,3841.4,3841.3,2.73368534]
[1754576357682,0.002,3841.4,3841.3,3.64198534]
[1754576357880,4.086,3841.4,3841.3,3.64198534]
[1754576358378,0.002,3841.4,3841.3,3.64198534]
[1754576358598,0.002,3841.4,3841.3,5.56830641]
[1754576358599,4.086,3841.4,3841.3,5.56830641]
[1754576359174,4.086,3841.4,3841.3,5.11210641]
[1754576359380,4.086,3841.4,3841.3,3.64198534]
[1754576360818,4.086,3841.4,3841.3,1.0387]
[1754576361180,4.086,3841.4,3841.3,3.51158534]
[1754576361823,4.086,3841.4,3841.3,0.9083]
[1754576362510,4.086,3841.4,3841.3,3.51158534]
[1754576362713,4.084,3841.4,3841.3,4.13612542]
[1754576362919,4.084,3841.4,3841.3,4.26652542]
[1754576364418,4.084,3841.4,3841.3,1.66324008]
[1754576364716,4.084,3841.4,3841.3,3.81032542]
[1754576365086,0.002,3841.4,3841.3,4.25982542]
[1754576365400,4.084,3841.4,3841.3,4.25982542]
[1754576365833,0.002,3841.4,3841.3,4.80982542]
[1754576366928,0.002,3841.8,3841.7,2.60301429]
[1754576367217,0.002,3841.8,3841.7,21.29496734]
[1754576367392,0.002,3841.8,3841.7,21.42536734]
[1754576368528,0.002,3841.8,3841.7,42.69137534]
[1754576368700,0.002,3841.8,3841.7,36.81365334]
[1754576369515,0.002,3842.2,3842.1,3.15274329]
[1754576369721,1e-08,3843.2,3842.5,2.60247234]
[1754576370029,1e-08,3843.2,3842.5,16.32675298]
[1754576370203,1e-08,3843.2,3842.5,17.21532826]
[1754576370541,1e-08,3843.2,3842.5,2.73287234]
[1754576370747,5.0059,3842.9,3842.0,0.4651]
[1754576370893,1e-08,3843.2,3842.5,16.17032826]
[1754576371094,4.08000001,3843.2,3842.5,16.30072826]
[1754576371307,4.08000001,3843.2,3842.5,17.21532826]
[1754576372640,0.002,3843.0,3842.5,17.21532826]
[1754576373942,0.002,3843.0,3842.5,17.41022054]
[1754576374112,0.002,3843.0,3842.5,20.41022054]
[1754576374299,0.002,3843.0,3842.5,23.09409982]
[1754576374498,0.002,3843.0,3842.5,40.96922782]
[1754576374701,0.002,3843.0,3842.5,53.09409982]
[1754576375393,0.002,3843.0,3842.5,43.61158082]
[1754576375740,0.002,3843.0,3842.5,42.98271982]
[1754576375955,0.002,3843.0,3842.5,26.69893682]
[1754576376420,0.002,3843.0,3842.5,9.6267439]
[1754576376929,0.9269,3843.0,3842.5,8.6116439]
[1754576377138,0.9269,3843.0,3842.5,2.92776462]
[1754576378701,2.60414265,3843.0,3842.5,0.32529228]
[1754576378901,0.9269,3842.6,3842.5,2.73287234]
[1754576379443,0.002,3842.6,3842.5,0.1304]
[1754576379645,0.002,3842.6,3842.5,2.73287234]
[1754576381501,0.002,3842.6,3842.5,3.8129011]
[1754576381747,0.002,3842.6,3842.5,4.2780011]
[1754576382254,0.002,3842.6,3842.5,3.8129011]
[1754576382423,0.002,3842.6,3842.5,1.21042876]
[1754576382944,0.002,3842.6,3842.5,0.33037116]
[1754576383144,0.9269,3842.6,3842.5,0.1304]
[1754576383348,0.9269,3842.6,3842.5,2.73287234]
[1754576383648,0.002,3842.6,3842.5,2.73287234]
[1754576385213,0.002,3842.6,3842.5,0.1304]
[1754576385414,0.002,3842.6,3842.5,2.73287234]
[1754576387264,3.52930462,3842.6,3842.5,0.1304]
[1754576387447,3.88420931,3842.6,3842.2,0.1304]
[1754576387645,3.54704433,3842.5,3841.8,2.602936]
[1754576387856,3.54704433,3842.5,3841.6,2.60307503]
[1754576387857,5.0019,3842.5,3841.6,2.60307503]
[1754576388027,2.60266954,3842.3,3841.9,0.1304]
[1754576388358,2.60267775,3842.2,3841.5,2.60309929]
[1754576388652,3.52765161,3842.1,3841.4,3.0]
[1754576388855,0.9249,3842.0,3841.6,0.1304]
[1754576389056,0.1304,3841.7,3841.2,0.1304]
[1754576389259,7.62467485,3841.6,3841.2,0.1304]
[1754576389418,0.9249,3841.5,3841.2,0.1304]
[1754576389825,0.9249,3841.4,3841.2,0.1304]
[1754576390133,0.4689,3841.4,3841.2,2.73374309]
[1754576390546,0.9357,3841.4,3841.2,0.1304]
[1754576390745,0.4306,3841.4,3841.2,2.73374947]
[1754576390949,0.8974,3841.4,3841.2,2.73374947]
[1754576391264,4.077,3841.5,3841.3,0.1304]
[1754576391437,0.4306,3841.4,3841.3,0.1304]
[1754576391634,0.8974,3841.4,3841.3,0.1304]
[1754576392126,0.8974,3841.4,3841.3,2.73368534]
[1754576392555,0.8974,3841.4,3841.3,0.1304]
[1754576392755,0.8974,3841.4,3841.3,2.73368534]
[1754576393257,0.8974,3841.4,3841.3,2.60328534]
[1754576393464,4.077,3841.5,3841.3,2.60328534]
[1754576394167,4.9744,3841.5,3841.2,0.1304]
[1754576394368,0.8974,3841.4,3841.2,2.73373679]
[1754576394679,0.8974,3841.3,3841.2,0.1304]
[1754576394844,0.8974,3841.3,3841.0,0.001]
[1754576395030,0.9170714,3841.2,3841.0,0.001]
[1754576395531,0.0196714,3841.2,3841.0,0.001]
[1754576395731,0.8974,3841.1,3841.0,0.001]
[1754576397231,2.71247161,3841.1,3841.0,0.001]
[1754576397468,2.84287161,3841.1,3841.0,0.001]
[1754576397765,4.9744,3841.1,3841.0,0.001]
[1754576397979,4.9940714,3841.1,3841.0,0.001]
[1754576398171,4.9744,3841.1,3841.0,0.001]
[1754576400276,0.1304,3841.2,3841.0,0.001]
[1754576400449,4.077,3841.1,3841.0,3.06188867]
[1754576400634,0.1304,3841.6,3841.1,2.73379483]
[1754576400835,4.076,3841.5,3841.1,2.60342089]
[1754576401069,14.5,3841.5,3841.4,2.60321757]
[1754576401256,4.077,3841.4,3841.2,3.19109921]
[1754576401453,0.1304,3842.1,3841.4,0.1304]
[1754576401733,4.077,3842.0,3841.5,0.4574]
[1754576401934,4.077,3842.0,3841.6,2.73343125]
[1754576402172,0.8974,3841.9,3841.6,2.73343125]
[1754576402382,4.077,3842.0,3841.6,0.1304]
[1754576402581,4.077,3841.9,3841.8,2.60294653]
[1754576402784,4.077,3841.9,3841.7,2.60300116]
[1754576402943,4.5076,3841.9,3841.7,2.60300116]
[1754576403139,0.1304,3842.1,3841.6,0.1304]
[1754576403343,4.076,3842.1,3842.0,3.15281103]
[1754576403574,4.078,3842.6,3842.5,2.60247234]
[1754576403897,4.078,3842.6,3842.5,3.19027234]
[1754576403898,0.002,3842.6,3842.5,3.19027234]
[1754576404240,0.002,3842.6,3842.5,4.36675518]
[1754576404475,0.002,3842.6,3842.5,13.03619318]
[1754576404688,0.002,3843.0,3842.9,16.17005738]
[1754576404984,0.002,3843.0,3842.9,30.93452238]
[1754576405184,0.002,3843.0,3842.9,31.86392238]
[1754576405333,0.002,3843.0,3842.9,33.62350874]
[1754576405539,0.05071403,3843.4,3843.1,6.15206604]
[1754576405772,0.05071403,3843.4,3843.1,36.4772107]
[1754576406157,0.05071403,3843.4,3843.1,24.0563027]
[1754576406364,0.05071403,3843.4,3843.1,22.3406547]
[1754576406559,0.05071403,3843.4,3843.1,24.41366118]
[1754576406789,0.05071403,3843.4,3843.1,24.30824718]
[1754576406940,0.05071403,3843.4,3843.1,11.79893718]
[1754576407291,0.05071403,3843.4,3843.1,18.21557618]
[1754576407866,0.05071403,3843.4,3843.1,13.66857618]
[1754576408085,0.05071403,3843.4,3843.1,17.74357618]
[1754576408284,0.05071403,3843.4,3843.1,12.62521718]
[1754576408785,0.05071403,3843.4,3843.1,8.35547252]
[1754576408974,0.94811403,3843.4,3842.4,0.4574]
[1754576409176,0.05071403,3843.4,3843.1,2.60206604]
[1754576409376,0.05071403,3843.4,3843.1,2.73246604]
[1754576410559,0.05071403,3843.4,3843.1,3.73986604]
[1754576413389,0.05071403,3843.4,3843.1,7.21186604]
[1754576413759,0.05071403,3843.4,3843.1,6.73986604]
[1754576413959,0.05071403,3843.4,3843.1,9.40292163]
[1754576415881,0.05071403,3843.4,3843.1,9.87492163]
[1754576416387,0.05071403,3843.4,3843.1,39.87492163]
[1754576417163,0.05071403,3843.4,3843.1,9.87492163]
[1754576417395,0.05071403,3843.4,3843.1,39.87492163]
[1754576420267,0.05071403,3843.4,3843.1,34.45557263]
[1754576420500,0.05071403,3843.4,3843.1,38.52757263]
[1754576420708,0.05071403,3843.4,3843.1,38.97927263]
[1754576421168,0.05071403,3843.4,3843.1,39.08345263]
[1754576421363,0.05071403,3843.4,3843.1,43.02212663]
[1754576421991,0.05071403,3843.4,3843.1,24.67827663]
[1754576422310,0.05071403,3843.4,3843.1,43.61470163]
[1754576422527,0.05071403,3843.4,3843.1,9.04970163]
[1754576422807,0.05071403,3843.4,3843.1,15.72328063]
[1754576423017,0.05071403,3843.4,3843.1,16.21628063]
[1754576423711,0.05071403,3843.4,3843.1,15.72328063]
[1754576423919,0.05071403,3843.4,3843.1,16.21628063]
[1754576424396,0.05071403,3843.4,3843.1,43.96222163]
[1754576424599,0.05071403,3843.4,3843.1,43.51052163]
[1754576424780,0.05071403,3843.4,3843.1,21.32985463]
[1754576425480,0.05071403,3843.4,3843.1,25.29459463]
[1754576425683,0.05071403,3843.4,3843.1,16.28132663]
[1754576425877,0.05071403,3843.4,3843.1,13.61470363]
[1754576426181,0.05071403,3843.4,3843.1,17.59761963]
[1754576426594,0.05071403,3843.4,3843.1,11.99920863]
[1754576426789,0.05071403,3843.4,3843.1,9.33615304]
[1754576426994,0.05071403,3843.4,3843.1,13.90015304]
[1754576427411,0.05071403,3843.4,3843.1,39.89948804]
[1754576427605,0.05071403,3843.4,3843.1,18.15062604]
[1754576427777,0.05071403,3843.4,3843.1,17.26741804]
[1754576427980,0.05071403,3843.4,3843.1,18.71105523]
[1754576429200,0.05071403,3843.4,3843.1,17.13179123]
[1754576429400,0.05071403,3843.4,3843.1,12.79604523]
[1754576429602,0.05071403,3843.4,3843.1,16.86604523]
[1754576429807,0.05071403,3843.4,3843.1,17.35904523]
[1754576430009,0.05071403,3843.4,3843.1,12.85209123]
[1754576430523,0.05071403,3843.4,3843.1,28.39819223]
[1754576430834,0.05071403,3843.4,3843.1,43.30379123]
[1754576430988,0.05071403,3843.4,3843.1,43.24629549]
[1754576431682,0.05071403,3843.4,3843.3,3.15193063]
[1754576431886,0.05071403,3843.4,3843.3,43.06222921]
[1754576432085,0.05071403,3843.4,3843.3,43.52920991]
[1754576433726,0.05071403,3843.4,3843.3,42.49132491]
[1754576433909,0.05071403,3843.4,3843.3,29.93718991]
[1754576434111,0.05071403,3843.4,3843.3,24.80106491]
[1754576434316,0.05071403,3843.4,3843.3,12.81177491]
[1754576434518,0.05071403,3843.4,3843.3,16.88077491]
[1754576435233,0.05071403,3843.4,3843.3,25.31787091]
[1754576435517,0.05071403,3843.4,3843.3,13.13938891]
[1754576436030,0.98461403,3843.4,3843.3,6.38650963]
[1754576436204,0.98461403,3843.4,3843.3,10.45550963]
[1754576436616,0.98461403,3843.4,3843.3,10.35133063]
[1754576436805,0.98461403,3843.4,3843.3,5.73233063]
[1754576437007,0.98461403,3843.4,3843.3,0.1304]
[1754576437418,0.98461403,3843.4,3843.3,2.73233063]
[1754576437605,0.05071403,3843.4,3843.3,2.73233063]
[1754576437801,0.05071403,3843.4,3843.3,10.35133063]
[1754576438006,0.05071403,3843.4,3843.3,12.94845462]
[1754576438316,0.05071403,3843.4,3843.3,39.31154963]
[1754576438516,0.05071403,3843.4,3843.3,38.34654963]
[1754576438727,0.05071403,3843.4,3843.3,38.02070563]
[1754576438901,0.05071403,3843.4,3843.3,33.36823863]
[1754576439109,0.05071403,3843.4,3843.3,31.95147763]
[1754576439425,0.05071403,3843.4,3843.3,40.58022291]
[1754576439630,0.05071403,3843.4,3843.3,39.24190591]
[1754576439817,0.05071403,3843.4,3843.3,31.08236891]
[1754576440019,0.05071403,3843.4,3843.3,25.82206691]
[1754576440446,0.05071403,3843.4,3843.3,13.03520991]
[1754576440649,0.05071403,3843.4,3843.3,10.35033063]
[1754576440818,0.05071403,3843.4,3843.3,6.28233063]
[1754576440819,0.98461403,3843.4,3843.3,6.28233063]
[1754576441009,0.98461403,3843.4,3843.3,9.80033063]
[1754576441203,0.98461403,3843.4,3843.3,5.73233063]
[1754576442043,0.98461403,3843.4,3843.3,3.28233063]
[1754576442341,0.05071403,3843.4,3843.3,3.28233063]
[1754576442545,0.05071403,3843.4,3843.3,6.28233063]
[1754576443045,0.98461403,3843.4,3843.3,10.35033063]
[1754576443752,0.05071403,3843.4,3843.3,10.35033063]
[1754576444410,0.05071403,3843.4,3843.3,24.67384374]
[1754576445728,0.05071403,3843.4,3843.3,25.16684374]
[1754576446149,0.05071403,3843.4,3843.3,24.67384374]
[1754576446465,0.98461403,3843.4,3843.3,10.35033063]
[1754576446627,0.98461403,3843.4,3843.3,20.58863832]
[1754576448578,0.98461403,3843.4,3843.3,9.80033063]
[1754576448757,0.98461403,3843.4,3843.3,5.73233063]
[1754576449437,3.58647696,3843.4,3842.7,2.60233689]
[1754576449628,3.914554,3843.3,3842.6,2.60338653]
[1754576449832,2.980654,3843.3,3842.7,3.0]
[1754576450033,3.53591802,3843.2,3842.6,0.001]
[1754576450334,0.41620652,3843.1,3842.6,2.60338176]
[1754576450580,0.8878,3843.0,3842.6,0.001]
[1754576450742,0.0196714,3842.9,3842.6,0.001]
[1754576450948,0.3906149,3842.8,3842.6,0.001]
[1754576451140,0.9074714,3842.9,3842.6,0.001]
[1754576451141,0.0196714,3842.7,3842.6,0.001]
[1754576451350,0.8878,3842.7,3842.6,0.001]
[1754576453870,0.8878,3842.7,3842.6,2.60340462]
[1754576454167,0.8878,3842.7,3842.6,0.001]
[1754576454370,0.8878,3842.7,3842.6,2.60340462]
[1754576454666,0.4282,3842.7,3842.6,2.60340462]
[1754576455032,0.8878,3842.7,3842.6,2.60340462]
[1754576455763,0.8878,3842.7,3842.6,0.001]
[1754576456165,3.49013689,3842.7,3842.6,0.001]
[1754576456377,4.12101279,3842.7,3842.6,0.001]
[1754576456663,4.10134139,3842.7,3842.6,0.001]
[1754576457059,1.4990045,3842.7,3842.6,0.001]
[1754576457437,0.8878,3842.7,3842.6,0.001]
[1754576457635,3.49013689,3842.7,3842.6,0.001]
[1754576457837,7.55613689,3842.7,3842.6,0.001]
[1754576458062,7.79904481,3842.7,3842.6,0.001]
[1754576458240,10.79904481,3842.7,3842.6,0.001]
[1754576458442,10.79904481,3842.7,3842.3,0.001]
[1754576458443,5.60254007,3842.4,3842.3,0.001]
[1754576458665,5.84544799,3842.4,3842.3,0.001]
[1754576458968,20.26145841,3842.4,3842.3,1e-08]
[1754576459168,22.94533769,3842.4,3842.3,1e-08]
[1754576459378,23.91712727,3842.4,3842.3,1e-08]
[1754576460057,24.04752727,3842.4,3842.3,1e-08]
[1754576460796,28.11352727,3842.4,3842.3,1e-08]
[1754576461142,28.11452727,3842.4,3842.3,1e-08]
[1754576461941,41.64273769,3842.4,3842.3,1e-08]
[1754576462500,6.15260781,3842.3,3842.2,1e-08]
[1754576462777,2.60342089,3841.1,3841.0,0.001]
[1754576462942,9.68909229,3841.1,3841.0,0.001]
[1754576463272,25.42980289,3841.1,3841.0,0.001]
[1754576463464,25.18762089,3841.1,3841.0,0.001]
[1754576466373,38.40733522,3841.1,3841.0,0.001]
[1754576466560,39.74745986,3841.1,3841.0,0.001]
[1754576466761,26.76924944,3841.1,3841.0,0.001]
[1754576469059,26.76898702,3841.1,3841.0,0.001]
[1754576469377,26.76998702,3841.1,3841.0,0.001]
[1754576472144,26.76981756,3841.1,3841.0,0.001]
[1754576475356,20.27859667,3841.1,3841.0,0.001]
[1754576475554,18.93747203,3841.1,3841.0,0.4858]
[1754576475793,18.6964,3841.1,3841.0,0.4858]
[1754576477002,14.6304,3841.1,3841.0,0.4858]
[1754576477308,18.6964,3841.1,3841.0,0.919]
[1754576477602,0.1304,3841.1,3841.0,3.52248867]
[1754576477801,0.1304,3841.1,3841.0,4.13519927]
[1754576478102,4.1964,3841.1,3841.0,4.13519927]
[1754576478393,4.066,3841.1,3841.0,4.26559927]
[1754576478753,6.3804,3841.6,3841.4,2.60319953]
[1754576478955,4.066,3841.5,3841.0,0.7441106]
[1754576479178,4.066,3841.5,3841.2,2.60332247]
[1754576479360,4.066,3841.5,3841.3,0.1304]
[1754576479566,4.066,3841.5,3841.4,3.52121757]
[1754576480387,4.066,3841.5,3841.4,0.918]
[1754576480761,4.066,3841.5,3841.0,0.001]
[1754576480965,4.066,3841.5,3841.4,0.4768]
[1754576481163,4.066,3841.5,3841.4,0.9081]
[1754576482299,4.065,3841.5,3841.4,0.4768]
[1754576482534,4.065,3841.5,3841.4,3.51131757]
[1754576482686,4.065,3841.5,3841.4,0.9081]
[1754576483181,4.065,3841.5,3841.4,3.51131757]
[1754576484125,0.1304,3841.8,3841.5,2.60309649]
[1754576484329,4.065,3841.7,3841.4,0.62450421]
[1754576484489,4.065,3841.7,3841.5,3.51124687]
[1754576484689,4.065,3841.7,3841.6,0.6072]
[1754576484890,4.30754279,3841.7,3841.6,0.6072]
[1754576485090,4.30754279,3841.7,3841.3,0.66806005]
[1754576485409,2.60339931,3841.2,3841.0,0.001]
[1754576485718,6.79782089,3841.1,3841.0,0.001]
[1754576485920,6.79782089,3841.1,3840.6,0.001]
[1754576485921,2.60382762,3840.5,3840.4,1e-08]
[1754576486120,2.60382762,3840.5,3838.8,0.4778]
[1754576486121,2.60416666,3840.0,3838.8,0.001]
[1754576486284,24.06209321,3840.0,3838.8,0.001]
[1754576486485,2.60423448,3839.9,3838.8,0.001]
[1754576486706,3.73986254,3839.9,3838.8,0.001]
[1754576487421,3.74006804,3839.9,3838.8,0.001]
[1754576487624,3.75973944,3839.9,3838.8,0.001]
[1754576487920,11.62959731,3839.9,3838.8,0.001]
[1754576488107,11.60992591,3839.9,3838.8,0.001]
[1754576488312,11.60994777,3839.9,3838.8,0.001]
[1754576490433,11.60980786,3839.9,3838.8,0.001]
[1754576491036,11.60970387,3839.9,3838.8,0.001]
[1754576491604,11.60970387,3839.9,3839.8,1e-08]
[1754576491801,5.6043023,3839.8,3839.7,1e-08]
[1754576492036,2.60491286,3838.9,3838.8,0.001]
[1754576492247,6.91270997,3838.9,3838.8,0.001]
[1754576492423,21.54310997,3838.9,3838.8,0.001]
[1754576492802,21.54310997,3838.9,3838.8,0.4778]
[1754576493003,18.93819711,3838.9,3838.8,0.4778]
[1754576493409,18.93819711,3838.9,3838.8,0.9091]
[1754576493624,4.30779711,3838.9,3838.8,0.9091]
[1754576495311,0.24279711,3838.9,3838.8,3.51408072]
[1754576495512,0.1304,3839.6,3838.9,2.60488435]
[1754576495744,4.30733402,3839.5,3839.1,2.60472269]
[1754576496040,0.24233402,3839.4,3839.2,0.9081]
[1754576496216,4.30733402,3839.3,3839.1,2.60472269]
[1754576496420,4.065,3839.3,3839.1,2.60472269]
[1754576496738,4.065,3839.3,3839.1,0.1304]
[1754576496938,4.065,3839.3,3839.2,3.51280931]
[1754576497305,0.1304,3839.8,3839.3,2.6046203]
[1754576497541,3.06041197,3840.7,3839.3,2.6046203]
[1754576497542,0.24219491,3839.7,3839.4,0.9081]
[1754576497711,4.065,3839.7,3839.5,2.60445282]
[1754576497914,4.065,3839.7,3839.6,2.60443796]
[1754576498103,4.065,3839.7,3839.6,0.9081]
[1754576498304,4.30720722,3839.7,3839.6,0.9081]
[1754576498624,4.30720722,3839.7,3839.6,3.51253796]
[1754576498625,4.065,3839.7,3839.6,3.51253796]
[1754576498943,4.065,3839.7,3839.6,4.25464419]
[1754576499239,4.065,3839.7,3839.6,1.65020623]
[1754576499543,4.065,3839.7,3839.6,0.6072]
[1754576500413,4.065,3839.7,3839.6,3.64293796]
[1754576500831,3.0,3841.0,3839.7,0.55]
[1754576501029,0.1304,3840.7,3839.8,0.4768]
[1754576501215,0.24221292,3840.6,3840.1,0.1304]
[1754576501420,4.30621292,3840.6,3840.2,3.51210394]
[1754576501616,4.064,3840.6,3840.3,0.4768]
[1754576501841,4.064,3840.6,3840.4,0.4768]
[1754576502015,4.064,3840.6,3840.2,3.03530394]
[1754576502016,4.064,3840.6,3840.2,0.4313]
[1754576502223,4.064,3840.6,3840.5,0.4768]
[1754576502555,4.30611543,3840.6,3840.5,0.4768]
[1754576502924,6.253,3841.2,3840.5,0.4768]
[1754576503125,0.37252273,3841.1,3840.5,1.0385]
[1754576503364,0.24212273,3841.1,3840.7,0.1304]
[1754576503515,4.063,3841.2,3841.0,2.60348867]
[1754576503852,4.063,3841.2,3841.1,3.51152089]
[1754576505621,4.063,3841.2,3841.1,3.08022089]
[1754576506121,4.063,3841.2,3841.1,0.4768]
[1754576506527,4.5197,3841.2,3840.6,0.4768]
[1754576506740,4.9558,3841.2,3840.9,0.1304]
[1754576507349,4.9558,3841.2,3840.8,2.60360566]
[1754576507559,7.55920484,3841.2,3840.8,0.1304]
[1754576507745,7.55920484,3841.2,3840.7,0.1304]
[1754576507746,4.5197,3841.2,3840.7,0.1304]
[1754576507949,0.8928,3841.1,3840.7,0.1304]
[1754576508161,0.9124714,3841.1,3840.7,0.1304]
[1754576508343,3.51589808,3841.1,3840.7,0.1304]
[1754576508695,3.51589808,3841.1,3839.8,0.4768]
[1754576508696,0.8928,3841.0,3839.8,0.4768]
[1754576508864,0.1304,3840.7,3840.2,0.1304]
[1754576509027,4.9548,3840.6,3840.0,2.60415098]
[1754576509227,4.9548,3840.6,3840.1,0.1304]
[1754576509440,6.66577068,3840.6,3840.1,0.1304]
[1754576509644,0.4361,3840.5,3840.2,2.60403104]
[1754576509842,4.5187,3840.6,3840.2,2.60403104]
[1754576510139,4.062,3840.6,3840.2,2.60403104]
[1754576510955,4.062,3840.6,3840.2,2.60402967]
[1754576511160,4.062,3840.6,3840.1,0.1304]
[1754576511461,4.062,3840.6,3840.4,0.1304]
[1754576511664,4.062,3840.6,3840.4,2.73425193]
[1754576511866,4.062,3840.6,3840.5,3.06562762]
[1754576512042,4.062,3840.6,3840.5,0.4618]
[1754576512960,4.062,3840.6,3840.5,2.60382762]
[1754576513160,4.062,3840.6,3840.5,3.06562762]
[1754576513640,4.062,3840.6,3840.5,3.19602762]
[1754576513836,4.062,3840.6,3840.5,0.5922]
[1754576514139,4.062,3840.6,3840.5,0.1304]
[1754576516674,4.062,3840.6,3840.5,0.5922]
[1754576517567,4.062,3840.6,3840.5,0.1304]
[1754576517777,4.9761,3840.6,3840.5,0.1304]
[1754576517958,5.47371,3840.6,3840.0,3.0]
[1754576518275,0.0196714,3840.5,3839.4,0.4618]
[1754576518459,2.60392942,3840.4,3839.2,0.782199]
[1754576518651,2.6043494,3839.8,3839.5,0.1304]
[1754576518852,0.0196714,3839.7,3839.5,0.1304]
[1754576519051,4.061,3839.8,3838.8,0.4532]
[1754576519052,0.9141,3839.6,3839.3,0.1304]
[1754576519256,4.061,3839.5,3839.1,0.1304]
[1754576519565,4.061,3839.5,3838.8,2.60591396]
[1754576519566,0.1304,3839.3,3838.8,0.1314]
[1754576519767,4.061,3839.2,3838.8,0.1314]
[1754576519982,4.061,3839.2,3838.8,0.001]
[1754576519983,2.60491286,3838.9,3838.8,0.001]
[1754576520301,2.62458426,3838.9,3838.8,0.001]
[1754576520588,3.53868426,3838.9,3838.8,0.001]
[1754576520893,3.64941286,3838.9,3838.8,0.001]
[1754576521090,4.724813,3838.9,3838.8,0.001]
[1754576521390,8.785813,3838.9,3838.8,0.001]
[1754576522694,23.285813,3838.9,3838.8,0.001]
[1754576524673,2.60498072,3838.8,3838.7,0.001]
[1754576524867,2.60511644,3838.6,3838.5,0.001]
[1754576525086,2.60538794,3838.2,3838.1,0.001]
[1754576525274,9.68605934,3838.2,3838.1,0.001]
[1754576525462,10.71088794,3838.2,3838.1,0.001]
[1754576525789,26.46269638,3838.2,3838.1,0.001]
[1754576526087,26.70508174,3838.2,3838.1,0.001]
[1754576526593,26.70481542,3838.2,3838.1,0.001]
[1754576526776,27.01269638,3838.2,3838.1,0.001]
[1754576527292,2.60653738,3836.6,3835.9,0.4618]
[1754576527595,2.60661036,3836.4,3835.7,2.60707039]
[1754576527893,0.1304,3836.0,3835.6,0.4618]
[1754576528094,4.061,3835.9,3835.6,0.4618]
[1754576528268,0.1304,3835.8,3835.6,0.4618]
[1754576528472,0.1304,3835.8,3835.7,2.60708605]
[1754576528805,0.1304,3835.8,3835.7,3.06888605]
[1754576529008,0.1304,3836.0,3835.7,1.52683064]
[1754576529158,4.061,3836.0,3835.9,2.60695012]
[1754576529716,4.061,3836.0,3835.9,3.52095012]
[1754576530489,4.061,3836.0,3835.9,3.06875012]
[1754576531003,4.061,3836.0,3835.9,3.52095012]
[1754576531299,4.061,3836.0,3835.9,3.06875012]
[1754576532788,4.061,3836.0,3835.7,0.1304]
[1754576533002,4.061,3836.0,3835.9,3.06875012]
[1754576533506,4.061,3836.0,3835.6,0.1304]
[1754576533800,4.061,3836.0,3835.5,0.4618]
[1754576534102,0.1304,3835.8,3835.6,2.60709384]
[1754576534260,0.1304,3835.8,3835.7,2.60708605]
[1754576534459,0.1304,3835.8,3835.6,2.60713001]
[1754576535108,0.1304,3835.8,3835.7,2.60708605]
[1754576535265,4.062,3836.0,3835.8,2.60696923]
[1754576535462,4.062,3836.0,3835.9,2.60695012]
[1754576535667,2.6063269,3836.9,3835.9,2.60695012]
[1754576535668,0.1304,3837.1,3836.1,3.0]
[1754576535961,4.063,3837.2,3837.0,2.6062003]
[1754576536277,4.063,3837.2,3836.7,2.73676218]
[1754576536604,4.063,3837.2,3836.5,0.1304]
[1754576536791,0.1304,3837.1,3836.8,2.60633861]
[1754576537168,0.1304,3837.1,3836.7,3.06818501]
[1754576537384,0.1304,3837.1,3836.5,0.1304]
[1754576537578,0.1304,3837.1,3837.0,2.60620276]
[1754576537875,4.062,3837.1,3837.0,0.4618]
[1754576538064,4.062,3837.1,3837.0,16.49841318]
[1754576538267,2.60546959,3838.1,3837.5,2.60585669]
[1754576538268,14.5,3838.0,3837.5,2.60585669]
[1754576538567,4.062,3837.9,3837.4,2.60589486]
[1754576538774,4.062,3837.9,3837.0,15.8157219]
[1754576538775,0.1304,3837.8,3837.3,2.60599548]
[1754576538978,1.0445,3837.8,3837.3,0.1304]
[1754576539166,0.90159666,3837.8,3837.3,0.1304]
[1754576539366,0.1304,3837.5,3837.1,2.60608664]
[1754576539583,4.062,3837.4,3837.2,0.4618]
[1754576539789,4.062,3837.4,3837.3,3.067799]
[1754576540190,0.1304,3837.8,3837.3,1.042232]
[1754576540504,0.1304,3838.3,3837.7,13.10861042]
[1754576540709,4.062,3838.5,3838.1,2.60545582]
[1754576540917,4.062,3838.5,3838.4,2.60525218]
[1754576541417,0.1304,3838.6,3838.5,2.60518431]
[1754576541571,4.062,3838.7,3838.6,2.6051078]
[1754576541773,4.062,3838.8,3838.7,2.60504858]
[1754576542073,0.1304,3839.2,3839.1,2.60477716]
[1754576542291,4.062,3839.2,3839.1,2.60477716]
[1754576542525,4.062,3839.2,3839.1,3.09057716]
[1754576543198,0.1304,3839.8,3839.4,2.6045131]
[1754576543405,4.061,3839.7,3839.6,2.60443032]
[1754576543795,4.061,3839.7,3838.9,0.4858]
[1754576544012,4.061,3839.7,3839.2,0.1304]
[1754576544218,4.82921525,3839.7,3839.2,0.1304]
[1754576544528,4.061,3839.7,3839.3,0.4858]
[1754576544686,4.061,3839.7,3839.4,0.4858]
[1754576545124,2.60444205,3839.6,3839.2,0.1304]